bitfinex/quotes_ETHUSD_20240709
["timestamp","ask_amount","ask_price","bid_price","bid_amount"]
[1720486214724,0.3071305,3033.9,3032.3,0.55]
[1720486215020,3.07130502,3034.0,3032.6,2.071]
[1720486215207,2.4047,3034.2,3032.6,2.071]
[1720486216025,7.7479812,3034.9,3032.4,3.0]
[1720486216026,2.4047,3034.9,3033.7,2.071]
[1720486216334,2.4047,3035.8,3034.1,2.071]
[1720486217521,5.7926812,3035.8,3034.1,2.071]
[1720486218079,5.4047,3035.8,3033.7,2.071]
[1720486218417,0.3879812,3035.7,3033.7,5.071]
[1720486218598,3.93971021,3035.7,3033.7,5.071]
[1720486218795,0.55,3035.6,3033.7,5.071]
[1720486218992,0.55,3035.6,3033.7,2.071]
[1720486220144,3.55172901,3035.7,3033.8,0.55]
[1720486220311,0.63444102,3035.6,3033.7,2.071]
[1720486220627,2.452,3035.2,3033.3,9.511]
[1720486220821,2.452,3035.0,3032.9,2.071]
[1720486221618,2.4632,3034.8,3032.7,19.92]
[1720486221831,2.4632,3034.2,3032.5,2.071]
[1720486222006,2.4632,3034.2,3032.1,2.071]
[1720486222320,0.55,3034.1,3032.1,2.071]
[1720486222685,3.55,3034.1,3032.1,2.071]
[1720486222885,2.4632,3034.2,3032.5,2.071]
[1720486223127,6.40130502,3034.3,3033.3,2.071]
[1720486223426,2.3888,3034.7,3033.4,0.06592312]
[1720486223621,2.3888,3034.7,3033.7,2.071]
[1720486223991,2.3888,3034.7,3033.3,2.071]
[1720486225223,2.3888,3034.7,3033.4,0.06591756]
[1720486225394,5.5992,3035.3,3033.7,2.071]
[1720486225719,5.5992,3035.3,3033.8,0.61590193]
[1720486225922,6.15912,3035.3,3033.8,0.55]
[1720486226131,6.15912,3035.3,3033.8,3.0]
[1720486226287,6.15912,3035.3,3033.7,2.071]
[1720486226489,6.15912,3035.3,3033.2,7.44]
[1720486226806,8.449912,3035.2,3033.3,3.0]
[1720486227125,0.55,3035.1,3033.0,2.071]
[1720486227308,2.2545,3035.0,3033.0,2.071]
[1720486227491,0.83045,3034.9,3033.0,2.071]
[1720486227822,3.28045,3034.9,3033.0,2.071]
[1720486227997,0.55,3034.8,3033.0,2.071]
[1720486229393,3.28045,3034.9,3033.1,0.0659276]
[1720486229709,0.553495,3034.8,3033.1,0.0659276]
[1720486229909,2.2545,3035.0,3033.8,2.071]
[1720486230432,2.2545,3035.0,3033.9,0.06590654]
[1720486230633,4.834,3035.2,3033.9,0.06590654]
[1720486231211,4.834,3035.2,3033.8,2.071]
[1720486231399,0.8164,3035.1,3033.5,3.0]
[1720486231601,0.8164,3035.1,3033.4,5.071]
[1720486231819,0.04127738,3035.0,3033.4,8.36762]
[1720486232024,0.8164,3035.1,3033.4,8.36762]
[1720486232025,3.8164,3035.1,3033.7,3.29628]
[1720486232311,0.04105512,3034.9,3033.8,8.43309103]
[1720486232513,3.8164,3035.1,3033.8,8.43309103]
[1720486232514,0.04112021,3035.0,3033.8,8.43309103]
[1720486232755,0.04095509,3034.8,3033.8,5.071]
[1720486232898,0.04095509,3034.8,3033.8,2.071]
[1720486233101,0.04095509,3034.8,3033.5,6.29643]
[1720486233304,0.86915202,3035.0,3033.5,6.29643]
[1720486233797,0.4685552,3034.9,3033.5,3.0]
[1720486234039,2.4395,3034.8,3033.4,5.071]
[1720486234220,0.86915202,3035.0,3033.6,3.2964]
[1720486234426,3.0,3035.1,3033.8,5.36717]
[1720486234625,5.6929,3035.3,3033.8,5.36717]
[1720486234626,3.0,3035.2,3033.8,5.36717]
[1720486234811,3.0,3035.2,3033.4,5.071]
[1720486235010,1.41929,3035.1,3033.4,2.071]
[1720486235212,1.41929,3035.1,3033.0,2.071]
[1720486235439,3.07130502,3034.7,3033.0,2.071]
[1720486235623,3.07130502,3034.7,3032.6,2.071]
[1720486235624,3.3071305,3034.6,3032.6,2.071]
[1720486235825,2.4388,3034.4,3032.6,2.071]
[1720486236025,0.55,3034.3,3032.6,2.071]
[1720486236228,0.29888,3034.2,3032.6,2.071]
[1720486236405,3.62888,3034.2,3032.2,2.071]
[1720486236606,3.55,3034.1,3032.2,2.071]
[1720486236806,2.3329,3033.9,3032.2,2.071]
[1720486237141,0.55,3033.8,3031.8,2.071]
[1720486237339,7.90530502,3033.7,3031.4,2.071]
[1720486237539,1.5940305,3033.6,3031.4,2.071]
[1720486237922,4.5940305,3033.6,3031.4,2.071]
[1720486238243,2.4305,3033.5,3031.4,2.071]
[1720486238446,0.55,3033.4,3031.4,2.071]
[1720486238619,3.55,3033.4,3031.4,2.071]
[1720486238942,3.33,3033.1,3031.4,2.071]
[1720486239244,2.4305,3032.9,3031.0,2.071]
[1720486239409,1.08145,3032.8,3031.0,5.37023]
[1720486239610,4.08145,3032.8,3031.0,5.37023]
[1720486240051,4.08145,3032.8,3031.0,2.071]
[1720486241310,4.08145,3032.8,3031.2,3.29901]
[1720486241505,0.651195,3032.7,3031.0,2.071]
[1720486241706,0.651195,3032.7,3031.0,5.071]
[1720486242310,3.0,3032.8,3031.1,0.06596918]
[1720486242506,3.0,3032.8,3031.0,8.37022]
[1720486242710,5.4305,3032.9,3031.0,8.37022]
[1720486242943,0.78145,3032.8,3031.0,5.071]
[1720486243145,4.33145,3032.8,3031.0,0.06597755]
[1720486243331,0.976195,3032.7,3030.9,3.0]
[1720486243536,0.976195,3032.7,3031.0,0.06597407]
[1720486243913,0.976195,3032.7,3031.0,3.06597407]
[1720486244650,0.976195,3032.7,3030.6,6.693276]
[1720486244651,0.55,3032.6,3030.7,3.0]
[1720486244960,1.0807645,3032.6,3030.6,5.071]
[1720486245116,4.0807645,3032.6,3030.6,5.071]
[1720486245317,4.0807645,3032.6,3030.6,5.13697954]
[1720486245530,0.71520695,3032.5,3030.6,5.13697954]
[1720486245847,0.55,3032.4,3030.6,5.13697954]
[1720486246361,0.71520695,3032.5,3030.6,5.13697954]
[1720486246560,0.71520695,3032.5,3030.7,3.29954]
[1720486246787,2.4942,3032.4,3030.3,1.322736]
[1720486247066,3.46879715,3032.4,3030.3,1.322736]
[1720486247228,6.46879715,3032.4,3030.3,1.322736]
[1720486247436,6.46879715,3032.4,3030.2,3.3001]
[1720486247629,0.71840041,3032.3,3029.9,4.623254]
[1720486247837,7.8782,3032.2,3029.9,4.623334]
[1720486248052,2.2699,3032.1,3029.8,2.071]
[1720486248251,0.55,3032.0,3029.8,2.071]
[1720486248454,0.55,3032.0,3029.9,3.30042]
[1720486248671,0.55,3032.0,3030.0,0.06599393]
[1720486249369,0.55,3032.0,3030.0,3.36621393]
[1720486249577,0.717806,3031.9,3030.2,2.071]
[1720486249941,0.717806,3031.9,3030.3,0.06599021]
[1720486250443,0.717806,3031.9,3030.3,3.06599021]
[1720486250877,0.667806,3031.9,3030.3,3.0]
[1720486251041,0.55,3031.8,3030.3,3.0]
[1720486251369,0.55,3031.8,3029.8,2.071]
[1720486251370,2.4588,3031.7,3029.8,2.071]
[1720486251573,0.85088,3031.6,3029.8,5.37147]
[1720486251736,0.30088,3031.6,3029.9,3.0]
[1720486251935,0.30088,3031.6,3029.9,3.30041]
[1720486252141,0.275968,3031.5,3030.0,3.0]
[1720486252380,0.275968,3031.5,3029.8,2.071]
[1720486252595,0.55,3031.4,3029.8,2.071]
[1720486253245,0.275968,3031.5,3029.9,3.30034]
[1720486253444,0.275968,3031.5,3030.0,0.06599347]
[1720486253984,0.275968,3031.5,3030.0,3.36628347]
[1720486254143,3.0,3031.6,3030.0,6.36628347]
[1720486255354,3.0,3031.6,3030.0,3.0]
[1720486255569,0.55,3031.5,3029.8,2.071]
[1720486257183,0.55,3031.5,3029.5,3.30087]
[1720486257395,2.6782,3031.4,3029.4,2.071]
[1720486257686,2.6782,3031.4,3029.1,3.30123]
[1720486257687,5.8732,3031.3,3029.1,3.30123]
[1720486257890,2.3631,3031.2,3029.0,2.071]
[1720486258089,2.9131,3031.1,3029.0,2.071]
[1720486258297,2.9131,3031.1,3028.6,6.975111]
[1720486258298,2.3631,3030.6,3028.6,6.696251]
[1720486258458,2.3631,3030.6,3028.6,2.071]
[1720486258459,0.55,3030.5,3028.6,2.071]
[1720486258788,0.29131,3030.4,3028.6,2.071]
[1720486259161,0.55,3030.3,3028.6,2.071]
[1720486260279,2.4321,3030.2,3028.3,3.30218]
[1720486260479,0.84821,3030.1,3028.4,3.302]
[1720486260682,3.84821,3030.1,3028.4,3.302]
[1720486261202,3.84821,3030.1,3028.2,2.071]
[1720486261432,2.4036,3030.0,3027.8,2.071]
[1720486261706,2.4036,3030.0,3027.4,2.071]
[1720486261707,2.4036,3029.6,3027.4,2.071]
[1720486261865,3.1830905,3029.5,3027.4,5.37416]
[1720486262213,2.4371,3029.3,3027.4,5.37416]
[1720486262700,0.55,3029.2,3027.4,5.37416]
[1720486262888,0.55,3029.2,3027.4,2.071]
[1720486262889,0.29871,3029.1,3027.4,2.071]
[1720486263061,0.29871,3029.1,3027.4,8.44014977]
[1720486263265,0.29871,3029.1,3027.4,5.44014977]
[1720486263569,0.29871,3029.1,3027.4,5.3741]
[1720486263777,0.384871,3029.0,3027.3,3.0]
[1720486263970,0.384871,3029.0,3027.4,6.30305]
[1720486264173,0.384871,3029.0,3027.4,6.36909975]
[1720486264373,0.384871,3029.0,3027.4,3.0]
[1720486264697,0.384871,3029.0,3027.3,6.30323]
[1720486265282,0.384871,3029.0,3027.0,2.071]
[1720486265283,2.3151,3028.9,3027.0,2.071]
[1720486265503,2.3151,3028.9,3026.6,2.071]
[1720486265504,2.3151,3028.6,3026.6,2.071]
[1720486265892,2.3151,3028.4,3026.6,2.071]
[1720486266060,0.55,3028.3,3026.3,3.30436]
[1720486266402,0.55,3028.3,3025.2,3.30555]
[1720486266403,3.07130502,3027.7,3025.2,3.30555]
[1720486266604,3.07130502,3027.7,3024.6,5.37721]
[1720486266605,2.3151,3027.4,3024.6,5.37721]
[1720486266828,2.3151,3026.6,3024.7,1.325186]
[1720486266997,2.3151,3026.2,3024.0,3.30686]
[1720486267193,2.83966453,3026.2,3024.0,2.071]
[1720486267395,3.0,3026.1,3024.4,3.30642]
[1720486267639,2.3151,3026.2,3024.6,3.3062]
[1720486267927,2.3151,3026.2,3024.0,4.805488]
[1720486267928,0.34523235,3026.1,3024.7,3.37217764]
[1720486268241,0.34523235,3026.1,3024.4,3.30642]
[1720486268242,3.07130502,3026.7,3025.5,3.30513]
[1720486268539,3.0,3026.6,3025.6,0.06608734]
[1720486268689,3.0,3026.6,3025.8,2.071]
[1720486268690,0.34517972,3026.6,3025.8,2.071]
[1720486268887,1.67062644,3030.4,3025.8,2.071]
[1720486268888,2.61631,3028.2,3026.3,2.071]
[1720486269113,2.61631,3028.2,3026.5,3.30405]
[1720486269114,2.3298,3028.2,3026.5,3.30405]
[1720486269316,2.3298,3028.2,3026.5,5.37505]
[1720486269625,2.3298,3028.2,3026.1,2.071]
[1720486269826,2.3298,3028.2,3025.3,5.37644]
[1720486269827,3.07130502,3027.7,3025.3,5.37644]
[1720486270030,2.3185,3027.5,3025.0,3.30577]
[1720486270326,2.3185,3027.5,3024.9,2.071]
[1720486270327,4.834,3027.4,3025.3,2.071]
[1720486270527,4.834,3027.4,3025.3,2.13709605]
[1720486270528,0.76770645,3027.3,3025.3,2.13709605]
[1720486270833,3.76770645,3027.3,3025.7,3.30499]
[1720486271426,2.3185,3027.5,3025.4,3.30532]
[1720486271427,2.3185,3027.5,3025.8,0.06608687]
[1720486271723,2.3185,3027.5,3025.5,3.0]
[1720486272091,2.84306453,3027.5,3024.7,2.411]
[1720486272304,1.12012758,3027.4,3024.8,5.47299]
[1720486272654,2.463,3026.5,3024.2,2.167]
[1720486272922,0.52456453,3026.4,3024.3,3.30651]
[1720486273127,1.07456453,3026.4,3024.5,3.30632]
[1720486273436,1.07456453,3026.4,3024.2,2.167]
[1720486273437,0.65375645,3026.3,3024.2,2.167]
[1720486273647,2.98756453,3026.2,3023.6,5.47431]
[1720486273953,3.55,3026.1,3024.1,3.30667]
[1720486274233,3.55,3026.1,3024.5,3.30632]
[1720486274234,3.3641321,3026.1,3024.5,3.30632]
[1720486274438,3.3641321,3026.1,3024.2,2.167]
[1720486274439,0.55,3026.0,3024.2,2.167]
[1720486274595,1.18516966,3026.0,3024.2,2.167]
[1720486274794,1.70973419,3026.0,3023.7,0.1125901]
[1720486274999,3.07130502,3025.6,3023.7,0.1125901]
[1720486275228,3.07130502,3025.6,3023.8,0.06613349]
[1720486275229,3.0,3025.5,3023.8,0.06613349]
[1720486275411,3.0,3025.5,3023.9,3.30698]
[1720486275589,3.0,3025.5,3024.2,3.30664]
[1720486275795,3.0,3025.5,3024.0,0.06612344]
[1720486275796,3.6071305,3025.5,3024.0,3.30685]
[1720486276010,3.6071305,3025.5,3024.0,0.06611924]
[1720486276247,2.3995,3025.8,3024.0,0.06611924]
[1720486276544,2.3995,3025.8,3024.2,5.647]
[1720486276705,2.3995,3025.8,3024.3,3.0]
[1720486277214,2.4102,3025.6,3023.7,0.1125901]
[1720486277396,3.07130502,3025.4,3023.7,0.1125901]
[1720486277587,0.52456453,3025.3,3023.7,0.1125901]
[1720486277801,0.55,3025.2,3023.7,0.1125901]
[1720486278037,3.52456453,3025.3,3023.7,0.1125901]
[1720486278038,3.0,3025.3,3023.8,3.37318631]
[1720486278249,3.65958695,3025.3,3023.9,3.30694]
[1720486278403,3.0,3025.3,3024.0,3.30677]
[1720486278858,3.0,3025.3,3024.1,3.30676]
[1720486279148,3.07130502,3025.4,3024.3,3.30654]
[1720486279357,3.61945552,3025.4,3023.7,0.1125901]
[1720486279645,3.0,3025.3,3023.7,3.1125901]
[1720486279952,3.0,3025.3,3023.8,3.37319914]
[1720486280114,3.66194555,3025.3,3023.9,3.0]
[1720486280315,3.66194555,3025.3,3023.7,3.1125901]
[1720486280639,4.18651008,3025.3,3023.7,0.1125901]
[1720486280855,0.72814011,3025.2,3023.7,0.1125901]
[1720486282610,3.52456453,3025.3,3023.8,3.3732129]
[1720486282821,3.52456453,3025.3,3024.1,3.30675]
[1720486282822,3.0,3025.3,3024.1,3.30675]
[1720486283047,3.0,3025.3,3024.2,0.06612411]
[1720486283425,3.07130502,3025.4,3024.0,3.37297414]
[1720486283641,3.61945552,3025.4,3024.2,0.06612414]
[1720486283801,3.61945552,3025.4,3024.2,3.37274414]
[1720486284000,2.4102,3025.6,3024.3,0.06612124]
[1720486284233,2.4102,3025.6,3024.4,3.30634]
[1720486284440,2.4102,3025.6,3024.5,0.06611319]
[1720486285039,2.4102,3025.6,3024.5,3.37243319]
[1720486285239,0.34520306,3025.9,3024.5,3.37243319]
[1720486285240,0.34520306,3025.9,3024.5,0.06611319]
[1720486285405,3.33,3026.6,3025.5,3.30523]
[1720486285611,0.3451737,3026.3,3025.6,0.06609366]
[1720486285940,3.33,3026.6,3025.6,0.06609366]
[1720486286133,2.2616,3026.8,3025.6,0.06609366]
[1720486286653,2.2616,3026.8,3025.8,3.30489]
[1720486286943,2.2616,3026.8,3025.9,0.06608753]
[1720486287308,0.34516114,3027.3,3025.9,0.06608753]
[1720486287309,0.34516114,3027.3,3026.3,3.30434]
[1720486287519,3.07130502,3027.4,3026.4,0.06607643]
[1720486287724,3.07130502,3027.4,3026.1,0.06607643]
[1720486287929,3.07130502,3027.4,3026.2,3.3044]
[1720486288131,3.07130502,3027.4,3026.3,3.37042643]
[1720486288722,3.60343552,3027.4,3025.6,10.44]
[1720486288927,3.60343552,3027.4,3025.6,6.30512]
[1720486289445,3.07130502,3027.4,3026.1,3.30457]
[1720486289815,3.0,3027.3,3025.6,3.0]
[1720486290015,3.0,3027.3,3025.5,3.0]
[1720486290215,0.6071305,3027.2,3025.5,3.0]
[1720486290538,0.6071305,3027.2,3025.9,3.30479]
[1720486290735,0.6071305,3027.2,3026.0,2.08]
[1720486292234,3.0,3027.3,3026.1,0.0660882]
[1720486292417,3.07130502,3027.4,3026.1,3.3706382]
[1720486292814,3.07130502,3027.4,3026.6,2.08]
[1720486293010,3.07130502,3027.4,3026.7,0.06606908]
[1720486293220,2.25,3027.6,3026.7,0.06606908]
[1720486293415,2.25,3027.6,3026.7,6.36988908]
[1720486293644,2.25,3027.6,3026.8,0.06606481]
[1720486293840,2.25,3027.6,3026.7,6.30382]
[1720486294651,2.25,3027.6,3026.7,6.36988481]
[1720486295357,2.99956453,3027.6,3026.1,3.30447]
[1720486295646,2.25,3027.6,3026.4,3.30424]
[1720486295823,2.4572,3028.1,3026.7,5.38391]
[1720486296026,2.4572,3028.1,3026.8,3.36986046]
[1720486296243,5.88737191,3028.1,3026.7,2.08]
[1720486296552,5.88737191,3028.1,3026.8,0.06606291]
[1720486297476,5.88737191,3028.1,3026.3,2.08]
[1720486297620,1.3231891,3028.0,3026.3,2.08]
[1720486297820,2.2543,3027.8,3026.1,3.0]
[1720486298077,2.2543,3027.8,3026.3,2.08]
[1720486298078,0.55,3027.7,3026.3,2.08]
[1720486298237,1.25883,3027.7,3026.3,2.08]
[1720486298424,4.25883,3027.7,3026.3,2.08]
[1720486298627,4.78339453,3027.7,3026.0,7.44]
[1720486298862,0.70376945,3027.6,3025.9,2.08]
[1720486299228,0.70376945,3027.6,3026.0,0.06608263]
[1720486299419,0.70376945,3027.6,3025.9,5.3847]
[1720486299926,0.70376945,3027.6,3025.9,2.08]
[1720486300128,0.55,3027.5,3025.9,5.08]
[1720486300442,2.95416453,3027.4,3025.5,2.08]
[1720486300773,0.55,3027.3,3025.5,2.08]
[1720486301055,0.35041645,3027.2,3025.5,2.08]
[1720486301270,0.55,3027.1,3025.5,2.08]
[1720486301427,0.35041645,3027.2,3025.6,0.06608729]
[1720486301828,0.35041645,3027.2,3025.5,2.08]
[1720486302133,0.39004165,3027.1,3025.5,2.08]
[1720486302470,3.0,3027.3,3025.9,5.38478]
[1720486302622,2.4296,3027.4,3026.0,0.06608073]
[1720486302623,5.4296,3027.4,3026.0,0.06608073]
[1720486302832,5.4296,3027.4,3026.3,2.08]
[1720486303136,6.022186,3027.4,3026.3,2.08]
[1720486304389,2.3071,3028.0,3026.3,2.14607682]
[1720486304601,2.3071,3028.0,3026.6,3.304]
[1720486304900,1.84451909,3028.2,3027.0,3.30359]
[1720486305048,1.84451909,3028.2,3026.8,3.30374]
[1720486305249,0.18445191,3028.1,3026.6,3.0]
[1720486305492,0.18445191,3028.1,3026.3,0.6795218]
[1720486305649,2.3071,3028.0,3026.2,5.166]
[1720486305854,2.5099971,3028.0,3026.2,2.166]
[1720486306058,3.0,3027.9,3026.2,2.166]
[1720486306304,3.0,3027.9,3026.3,3.37036432]
[1720486306592,3.0,3027.9,3026.4,3.30424]
[1720486306796,3.55099971,3027.9,3026.4,3.30424]
[1720486307009,3.0,3027.9,3026.5,3.92010812]
[1720486307190,3.0,3027.8,3026.6,3.304]
[1720486307654,2.3071,3028.0,3026.7,0.06606312]
[1720486307858,1.84451909,3028.2,3026.8,0.06606293]
[1720486308072,1.84451909,3028.2,3027.0,3.30358]
[1720486308399,1.84451909,3028.2,3027.1,0.06605568]
[1720486308900,1.84451909,3028.2,3026.5,5.85035776]
[1720486308901,1.84451909,3028.2,3026.8,3.30374]
[1720486309112,2.028971,3028.2,3026.9,3.0]
[1720486309257,2.028971,3028.2,3026.4,0.6795218]
[1720486309608,2.028971,3028.2,3026.4,6.30423]
[1720486309755,2.4356,3028.0,3026.2,2.8455218]
[1720486309959,0.55,3027.9,3026.2,5.47044]
[1720486310192,3.55,3027.9,3026.3,3.0]
[1720486310395,0.59856,3027.8,3026.3,3.0]
[1720486310693,0.59856,3027.8,3026.3,6.30432]
[1720486311108,0.59856,3027.8,3026.4,3.30423]
[1720486311259,3.0,3027.9,3026.4,3.30423]
[1720486311459,2.4356,3028.0,3026.7,3.30391]
[1720486311658,2.4356,3028.0,3026.8,3.61605738]
[1720486311859,2.489,3028.7,3026.9,3.30361]
[1720486312102,2.489,3028.7,3027.0,3.06605232]
[1720486312103,5.489,3028.7,3027.0,3.06605232]
[1720486312265,2.489,3028.7,3027.1,3.30345]
[1720486312473,1.22054,3028.6,3027.2,0.06605295]
[1720486312670,2.489,3028.7,3027.2,0.06605295]
[1720486312671,1.84451909,3029.2,3027.7,3.30281]
[1720486312895,1.84451909,3029.2,3027.4,2.166]
[1720486312896,1.84451909,3029.2,3027.8,0.61603527]
[1720486313271,1.84451909,3029.2,3028.1,3.30238]
[1720486313461,1.84451909,3029.2,3027.9,3.30254]
[1720486313663,1.84451909,3029.2,3028.0,0.55]
[1720486314465,4.84451909,3029.2,3028.0,0.55]
[1720486314986,5.558601,3029.2,3027.6,3.30294]
[1720486315192,5.558601,3029.2,3027.7,6.85282]
[1720486315391,5.558601,3029.2,3027.8,3.30271]
[1720486315725,0.7854901,3029.1,3027.9,3.0]
[1720486315868,0.7854901,3029.1,3027.7,3.0]
[1720486316068,0.7854901,3029.1,3026.8,2.166]
[1720486316373,1.11300092,3029.0,3027.0,3.30357]
[1720486316575,1.11300092,3029.0,3026.8,2.166]
[1720486316576,2.4302,3028.9,3026.8,2.166]
[1720486316776,0.35432009,3028.8,3026.8,2.166]
[1720486316990,0.35432009,3028.8,3026.8,5.46977]
[1720486317193,2.4302,3028.6,3026.8,2.166]
[1720486317390,0.55,3028.5,3026.8,2.166]
[1720486317581,0.29802,3028.4,3026.8,2.166]
[1720486318096,0.29802,3028.4,3026.4,3.30424]
[1720486318269,0.29802,3028.4,3026.3,0.06606705]
[1720486318469,0.29802,3028.4,3026.6,3.30402]
[1720486318797,0.384802,3028.3,3026.6,3.30402]
[1720486319405,0.384802,3028.3,3026.8,3.30373]
[1720486320105,0.384802,3028.3,3026.6,3.30396]
[1720486320411,0.384802,3028.3,3026.8,3.30374]
[1720486320586,0.384802,3028.3,3026.5,3.30411]
[1720486320922,2.297,3028.2,3026.6,3.0]
[1720486321083,0.2681802,3028.1,3026.4,6.30416]
[1720486321282,0.2681802,3028.1,3026.8,3.30378]
[1720486321597,3.0,3028.1,3026.9,0.06605934]
[1720486321798,2.297,3028.2,3026.6,3.30403]
[1720486321971,2.297,3028.2,3026.7,3.0]
[1720486322171,0.7797,3028.1,3026.2,5.4704]
[1720486322376,2.297,3028.0,3026.2,2.166]
[1720486322592,0.36012645,3027.9,3026.2,5.47041]
[1720486322809,3.36012645,3027.9,3026.2,5.47041]
[1720486322994,3.36012645,3027.9,3026.2,2.166]
[1720486323198,3.36012645,3027.9,3026.2,5.47042]
[1720486323385,3.36012645,3027.9,3026.3,0.06607069]
[1720486323583,3.36012645,3027.9,3026.7,3.3039]
[1720486323584,3.0,3027.9,3026.7,3.3039]
[1720486324097,5.297,3028.0,3026.8,0.06605914]
[1720486324304,2.297,3028.0,3026.9,3.3037]
[1720486324496,2.297,3028.0,3027.0,0.06605579]
[1720486325199,2.297,3028.0,3026.6,3.30403]
[1720486325509,2.5267,3028.0,3026.8,3.30381]
[1720486325712,2.297,3028.0,3026.9,3.30368]
[1720486325873,2.2919,3028.7,3027.2,3.30328]
[1720486326207,2.2919,3028.7,3027.3,0.06604777]
[1720486326380,2.2919,3028.7,3027.7,3.30273]
[1720486326581,2.2919,3029.6,3027.8,6.36873645]
[1720486326793,3.0279,3029.6,3027.8,6.36873645]
[1720486327799,3.0,3029.5,3027.8,6.36873645]
[1720486328011,3.0,3029.5,3027.8,3.0]
[1720486328215,3.0,3029.5,3027.7,3.30276]
[1720486328512,0.60279,3029.4,3027.8,3.55]
[1720486328718,3.0279,3029.6,3028.0,3.30249]
[1720486329677,3.0,3029.5,3028.0,3.30249]
[1720486329896,3.0,3029.5,3028.1,0.06603244]
[1720486330082,0.60279,3029.4,3028.1,0.06603244]
[1720486330679,0.60279,3029.4,3027.6,6.30287]
[1720486330877,0.60279,3029.4,3027.8,3.30264]
[1720486331082,0.60279,3029.4,3027.9,3.0]
[1720486331474,3.0,3029.5,3028.0,3.36850653]
[1720486332416,3.0,3029.5,3028.0,3.30247]
[1720486332728,3.0,3029.5,3027.9,5.077]
[1720486332892,0.60279,3029.4,3027.9,2.077]
[1720486333386,3.0,3029.5,3028.0,3.36853643]
[1720486333711,3.0,3029.5,3028.3,2.077]
[1720486335651,3.0,3029.5,3027.9,2.077]
[1720486335919,3.0,3029.5,3027.0,2.077]
[1720486335920,2.4878,3029.3,3027.3,0.3525428]
[1720486336213,2.4878,3029.3,3027.3,2.077]
[1720486336214,2.4878,3029.1,3027.3,2.077]
[1720486336414,3.01236453,3029.0,3027.1,7.44]
[1720486336715,3.01236453,3029.0,3026.9,2.077]
[1720486336716,2.4878,3028.8,3026.9,2.077]
[1720486336882,0.52456453,3028.7,3026.9,2.077]
[1720486337083,0.52456453,3028.7,3026.5,9.517]
[1720486337084,3.0378,3028.6,3026.5,9.517]
[1720486337304,2.4878,3028.4,3026.5,9.517]
[1720486337491,5.90856453,3028.3,3026.5,9.517]
[1720486337696,2.4878,3028.1,3026.1,2.077]
[1720486337897,2.4878,3027.9,3026.1,2.077]
[1720486338220,1.07456453,3027.8,3026.1,2.077]
[1720486338587,4.07456453,3027.8,3026.1,2.077]
[1720486338915,2.3879,3027.7,3026.1,2.077]
[1720486339117,5.91246453,3027.7,3026.2,0.06608441]
[1720486339295,0.64624645,3027.6,3026.2,0.06608441]
[1720486339825,3.64624645,3027.6,3026.2,0.06608441]
[1720486340000,3.0,3027.6,3026.5,2.077]
[1720486340184,2.3879,3027.7,3026.9,2.077]
[1720486342348,3.0,3028.2,3027.0,0.06606398]
[1720486342535,2.4213,3028.3,3027.0,0.06606398]
[1720486342712,2.66343,3028.3,3026.9,2.077]
[1720486342910,3.0,3028.2,3026.9,2.077]
[1720486343565,3.0,3028.2,3027.0,0.06606592]
[1720486344410,2.4213,3028.3,3027.0,0.06606592]
[1720486344609,4.834,3028.8,3027.5,2.077]
[1720486344812,2.288,3028.9,3027.6,0.06604593]
[1720486345051,2.288,3028.9,3027.9,2.077]
[1720486345211,2.288,3028.9,3027.9,2.14303912]
[1720486345627,2.288,3029.7,3028.0,3.36850909]
[1720486345928,3.07645645,3029.7,3028.3,2.077]
[1720486346141,2.288,3029.7,3028.3,2.143031]
[1720486347139,2.288,3029.7,3028.3,2.077]
[1720486347339,3.0002,3029.7,3028.3,2.077]
[1720486348353,3.0,3029.6,3028.3,2.077]
[1720486348710,3.0,3029.6,3027.9,2.077]
[1720486348916,0.55,3029.5,3027.9,2.077]
[1720486349963,3.0,3029.6,3028.0,0.06604144]
[1720486350288,3.0,3029.6,3028.3,2.077]
[1720486350561,3.80704336,3029.6,3028.3,2.077]
[1720486350770,3.80704336,3029.6,3028.3,2.14303048]
[1720486353284,3.80704336,3029.6,3028.3,2.077]
[1720486353492,3.80704336,3029.6,3028.3,2.14303047]
[1720486353975,3.0,3029.6,3028.4,0.06603018]
[1720486354131,3.0,3029.8,3028.5,3.30195]
[1720486354491,3.0,3029.8,3028.7,2.077]
[1720486354785,0.7834,3029.7,3028.3,5.077]
[1720486354939,0.7834,3029.7,3028.3,2.077]
[1720486355345,3.0,3029.8,3028.4,0.06602607]
[1720486355574,3.0,3029.8,3028.4,3.36809607]
[1720486355774,3.0,3029.8,3028.3,2.077]
[1720486356541,2.9039,3029.7,3027.9,2.077]
[1720486356738,2.9039,3029.7,3027.5,2.077]
[1720486356739,4.21186453,3029.7,3027.5,2.077]
[1720486356938,3.96465172,3029.6,3027.5,5.38002]
[1720486357140,1.36765162,3029.5,3027.9,2.077]
[1720486357873,1.36765162,3029.5,3028.0,0.06604131]
[1720486358238,0.81765162,3029.5,3028.0,3.36846131]
[1720486358538,3.0,3029.6,3028.3,2.077]
[1720486358773,3.0,3029.6,3028.7,2.077]
[1720486358973,2.3539,3029.7,3028.8,0.06602574]
[1720486359239,2.3539,3029.7,3028.7,2.077]